bitfinex/quotes_SOLUSD_20240716
["timestamp","ask_amount","ask_price","bid_price","bid_amount"]
[1721129426699,1.58708822,157.54,157.49,37.11]
[1721129427275,1.58708822,157.54,157.5,1.26973889]
[1721129427467,1.58712056,157.55,157.5,1.26969644]
[1721129427671,7.94573673,157.56,157.5,1.26969644]
[1721129427970,6.3587,157.56,157.5,1.26969644]
[1721129428175,7.75843521,157.6,157.52,37.11]
[1721129428377,7.75843521,157.6,157.53,1.2693841]
[1721129428589,17.75843521,157.6,157.52,37.11]
[1721129428791,24.10363521,157.6,157.52,37.11]
[1721129428970,14.10363521,157.6,157.52,37.11]
[1721129429170,7.75843521,157.6,157.52,37.11]
[1721129429486,7.75843521,157.6,157.53,1.26873824]
[1721129429676,7.75843521,157.6,157.52,37.11]
[1721129430904,6.1716,157.6,157.52,37.11]
[1721129431070,7.75799248,157.6,157.52,37.11]
[1721129431399,7.75799248,157.6,157.53,1.26926851]
[1721129431600,7.75799248,157.6,157.52,37.11]
[1721129431895,7.75799248,157.6,157.53,1.26921795]
[1721129432105,7.75799248,157.6,157.52,37.11]
[1721129432584,7.75799248,157.6,157.53,1.26937256]
[1721129433200,7.75799248,157.6,157.52,37.11]
[1721129436992,6.1716,157.6,157.55,37.11]
[1721129437577,7.75799415,157.6,157.55,37.11]
[1721129437776,7.75799415,157.6,157.52,37.11]
[1721129438789,7.75799415,157.6,157.53,1.26934139]
[1721129438988,7.75799415,157.6,157.52,37.11]
[1721129441106,7.75799415,157.6,157.53,1.2693428]
[1721129441492,7.75799415,157.6,157.52,37.11]
[1721129443701,6.1716,157.6,157.55,37.11]
[1721129443905,6.1716,157.6,157.56,1.26915341]
[1721129444108,7.75804392,157.6,157.55,37.11]
[1721129444617,7.75804392,157.6,157.52,37.11]
[1721129444797,7.75804392,157.6,157.53,20.0]
[1721129445614,17.75804392,157.6,157.52,37.11]
[1721129445914,45.34,157.59,157.52,37.11]
[1721129446105,1.58685678,157.58,157.52,37.11]
[1721129446416,1.58685736,157.57,157.52,37.11]
[1721129446716,21.7011,157.56,157.49,37.11]
[1721129446920,1.58711088,157.55,157.49,37.11]
[1721129447221,1.58710943,157.54,157.49,37.11]
[1721129448012,1.5871204,157.55,157.49,37.11]
[1721129448322,1.58710865,157.54,157.49,37.11]
[1721129449194,1.587111,157.55,157.49,37.11]
[1721129449517,1.58714005,157.54,157.49,37.11]
[1721129450588,1.58714005,157.54,157.48,0.8562347]
[1721129454096,10.0,157.53,157.48,0.8562347]
[1721129454418,1.58742192,157.52,157.48,0.8562347]
[1721129454716,6.3232,157.5,157.48,0.8562347]
[1721129454898,1.58753332,157.49,157.48,0.8562347]
[1721129457511,6.3232,157.5,157.48,0.8562347]
[1721129458029,1.58753193,157.53,157.48,0.8562347]
[1721129459211,6.1011,157.54,157.49,38.37898198]
[1721129459403,6.1011,157.54,157.49,37.11]
[1721129459816,1.58700668,157.53,157.49,37.11]
[1721129460332,6.1011,157.54,157.5,1.26978023]
[1721129460629,6.1011,157.54,157.51,1.26952364]
[1721129461014,6.1011,157.54,157.49,37.11]
[1721129461400,6.1011,157.54,157.5,1.26951532]
[1721129461599,1.58722528,157.56,157.5,1.26951532]
[1721129461824,6.5828,157.59,157.52,37.11]
[1721129461825,1.58684993,157.58,157.52,37.11]
[1721129462040,8.16949523,157.59,157.53,1.26935585]
[1721129462206,6.5828,157.59,157.53,1.26935585]
[1721129462607,6.5828,157.59,157.53,21.26935585]
[1721129462802,6.5828,157.59,157.53,20.0]
[1721129463021,1.58659145,157.58,157.53,20.0]
[1721129463409,1.58659145,157.58,157.52,37.11]
[1721129463612,1.58659145,157.58,157.49,37.11]
[1721129463816,1.58659145,157.58,157.52,37.11]
[1721129464019,6.5828,157.59,157.52,37.11]
[1721129464318,6.5828,157.59,157.53,1.26924499]
[1721129464523,6.5828,157.59,157.55,37.11]
[1721129464732,6.5828,157.59,157.56,1.26913624]
[1721129465230,6.5828,157.59,157.55,37.11]
[1721129465405,1.58658494,157.58,157.52,37.11]
[1721129466530,1.58658494,157.58,157.48,0.8562347]
[1721129466531,46.58658494,157.58,157.49,37.11]
[1721129466704,10.34,157.57,157.48,0.8562347]
[1721129466906,15.8049,157.55,157.48,0.8562347]
[1721129467105,1.58720472,157.54,157.48,0.8562347]
[1721129467708,46.58720472,157.54,157.48,0.8562347]
[1721129468446,46.58720472,157.54,157.48,2.12605353]
[1721129470015,46.58720472,157.54,157.48,0.8562347]
[1721129470238,6.5153,157.57,157.53,37.11]
[1721129470408,6.5153,157.57,157.54,1.26930717]
[1721129470717,6.5153,157.57,157.54,1.26933296]
[1721129471107,6.5153,157.57,157.53,37.11]
[1721129471610,16.3685,157.59,157.54,1.26927674]
[1721129471826,1.58650783,157.6,157.54,1.26927674]
[1721129472137,1.58650783,157.6,157.53,37.11]
[1721129473013,1.58650783,157.6,157.54,1.26924512]
[1721129473415,8.10181529,157.61,157.54,1.26924512]
[1721129473613,1.58645073,157.6,157.54,1.26924512]
[1721129473815,1.58645073,157.6,157.56,37.11]
[1721129474007,1.58645073,157.6,157.53,37.11]
[1721129474430,10.0,157.59,157.53,37.11]
[1721129474624,1.58681797,157.58,157.53,37.11]
[1721129474822,1.58677299,157.57,157.53,37.11]
[1721129475034,46.75677299,157.6,157.53,37.11]
[1721129475406,10.0,157.59,157.53,37.11]
[1721129475610,15.8297,157.57,157.5,37.11]
[1721129475831,1.58698949,157.56,157.51,20.0]
[1721129476029,1.58698949,157.56,157.5,37.11]
[1721129476429,46.58698949,157.56,157.5,37.11]
[1721129476636,6.5173,157.55,157.5,37.11]
[1721129477315,6.5173,157.55,157.51,1.26954187]
[1721129477525,6.5173,157.55,157.5,37.11]
[1721129477918,15.8297,157.57,157.51,1.26956245]
[1721129478111,6.5984,157.59,157.53,37.11]
[1721129478317,6.5984,157.59,157.54,1.26926821]
[1721129478519,6.5984,157.59,157.55,1.26920965]
[1721129479644,1.58649528,157.58,157.53,37.11]
[1721129479813,8.18497639,157.59,157.54,1.26926096]
[1721129480012,6.5984,157.59,157.54,1.26926096]
[1721129481218,6.5984,157.59,157.56,37.11]
[1721129481536,18.01030107,157.61,157.56,37.11]
[1721129481743,16.4238,157.61,157.56,37.11]
[1721129484346,45.34,157.6,157.56,37.11]
[1721129484516,1.58672417,157.59,157.53,37.11]
[1721129485032,10.0,157.58,157.53,37.11]
[1721129485350,52.94730912,157.57,157.53,37.11]
[1721129485640,53.11730912,157.57,157.53,37.11]
[1721129485842,53.11730912,157.57,157.5,37.11]
[1721129486735,6.1904,157.57,157.51,1.2696327]
[1721129487137,6.1904,157.57,157.53,37.11]
[1721129491155,6.1904,157.57,157.54,1.26941762]
[1721129492150,6.1904,157.57,157.53,37.11]
[1721129493763,1.58677732,157.56,157.53,37.11]
[1721129494057,11.58677732,157.56,157.48,0.8562347]
[1721129494242,56.58677732,157.56,157.48,0.8562347]
[1721129494564,46.58677732,157.56,157.49,1.26973601]
[1721129495253,56.58677732,157.56,157.49,1.26973601]
[1721129496333,0.17,157.55,157.49,1.26973601]
[1721129496542,56.58677732,157.56,157.49,1.26973601]
[1721129497047,15.619,157.55,157.48,0.8562347]
[1721129497250,46.58724296,157.54,157.48,0.8562347]
[1721129497454,56.58724296,157.54,157.48,0.8562347]
[1721129500142,10.0,157.52,157.48,0.8562347]
[1721129500338,46.58755103,157.51,157.48,0.8562347]
[1721129500657,1.58755103,157.51,157.48,0.8562347]
[1721129500959,7.78115103,157.51,157.48,0.8562347]
[1721129501462,55.34,157.5,157.48,0.8562347]
[1721129501654,7.78131373,157.51,157.48,0.8562347]
[1721129502864,6.1936,157.51,157.48,0.8562347]
[1721129503035,1.58743983,157.5,157.48,0.8562347]
[1721129504364,6.1936,157.51,157.48,0.8562347]
[1721129505246,1.58743966,157.5,157.48,0.8562347]
[1721129505648,6.1936,157.51,157.48,0.8562347]
[1721129506262,1.58742112,157.5,157.48,0.8562347]
[1721129506565,6.1936,157.51,157.48,0.8562347]
[1721129506941,1.58741335,157.5,157.48,0.8562347]
[1721129507753,6.1936,157.51,157.48,0.8562347]
[1721129508371,1.5874114,157.5,157.48,0.8562347]
[1721129508976,6.1936,157.51,157.48,0.8562347]
[1721129509668,1.58744075,157.53,157.48,0.8562347]
[1721129509877,1.58728021,157.52,157.48,0.8562347]
[1721129510164,46.58728021,157.52,157.48,0.8562347]
[1721129512462,46.58728021,157.52,157.48,2.12611243]
[1721129512463,1.58728021,157.52,157.48,2.12611243]
[1721129512766,1.58727656,157.54,157.48,2.12611243]
[1721129512963,46.58727656,157.54,157.48,0.8562347]
[1721129513270,10.0,157.53,157.48,0.8562347]
[1721129513473,1.58745211,157.52,157.48,0.8562347]
[1721129513770,1.58745211,157.52,157.48,2.12612044]
[1721129513968,1.58745211,157.52,157.48,0.8562347]
[1721129514366,1.58730034,157.53,157.51,18.6]
[1721129514670,1.58730034,157.53,157.52,18.6]
[1721129516579,45.0,157.54,157.52,18.6]
[1721129516580,1.58719658,157.54,157.52,18.6]
[1721129516747,1.58719658,157.54,157.53,18.6]
[1721129518583,6.1983,157.55,157.53,18.6]
[1721129518758,6.1983,157.55,157.54,18.6]
[1721129519160,1.58697534,157.58,157.54,18.6]
[1721129519359,1.58689432,157.57,157.52,18.6]
[1721129519670,1.58689432,157.57,157.56,18.6]
[1721129519859,1.58678762,157.58,157.56,18.6]
[1721129520190,1.58667872,157.59,157.57,18.6]
[1721129520375,10.0,157.61,157.53,1.26943009]
[1721129520554,7.93093618,157.62,157.53,1.26943009]
[1721129520555,1.58661917,157.6,157.59,18.6]
[1721129521369,1.58661917,157.6,157.58,18.6]
[1721129521565,46.58661917,157.6,157.58,18.6]
[1721129522264,16.3456,157.59,157.48,16.6924347]
[1721129522480,52.93276247,157.58,157.51,37.19]
[1721129522680,1.5869458,157.57,157.51,37.19]
[1721129523477,10.0,157.55,157.51,37.19]
[1721129523680,46.58721118,157.54,157.48,53.8824347]
[1721129524461,46.58721118,157.54,157.49,1.26977936]
[1721129524656,1.58722407,157.53,157.49,1.26977936]
[1721129524959,1.58722407,157.53,157.48,53.8824347]
[1721129527296,1.58722407,157.53,157.49,1.2697814]
[1721129527472,1.58722407,157.53,157.48,53.8824347]
[1721129527892,1.5872267,157.54,157.48,53.8824347]
[1721129528188,16.3965,157.57,157.48,53.8824347]
[1721129528189,1.58703501,157.56,157.49,1.26962801]
[1721129528397,1.58703501,157.56,157.48,53.8824347]
[1721129528695,7.98342989,157.57,157.48,53.8824347]
[1721129528867,7.98342989,157.57,157.51,37.19]
[1721129530505,7.98342989,157.57,157.48,53.8824347]
[1721129530688,7.98342989,157.57,157.49,20.0]
[1721129530875,1.58697958,157.58,157.51,37.19]
[1721129531077,1.58697958,157.58,157.52,1.26939948]
[1721129531388,6.634,157.61,157.52,1.26939948]
[1721129531389,1.58674711,157.6,157.52,1.26939948]
[1721129531588,1.58674711,157.6,157.51,37.19]
[1721129532587,46.58674711,157.6,157.51,37.19]
[1721129532786,46.58674711,157.6,157.52,1.26931229]
[1721129533168,46.58674711,157.6,157.51,37.19]
[1721129533493,56.58674711,157.6,157.51,37.19]
[1721129533991,10.0,157.58,157.51,37.19]
[1721129534201,46.58698253,157.57,157.51,37.19]
[1721129535897,46.58698253,157.57,157.49,20.0]
[1721129536402,46.58698253,157.57,157.5,1.26958416]
[1721129538199,46.58698253,157.57,157.49,20.0]
[1721129538993,10.0,157.56,157.49,20.0]
[1721129539171,10.0,157.56,157.48,53.8824347]
[1721129539172,1.58712795,157.55,157.48,53.8824347]
[1721129539382,1.58712637,157.54,157.48,53.8824347]
[1721129540297,46.58713348,157.55,157.48,53.8824347]
[1721129540498,1.5871621,157.54,157.49,1.26972968]
[1721129540696,1.58708816,157.57,157.49,1.26972968]
[1721129541598,1.58698277,157.58,157.51,37.19]
[1721129541895,1.58683256,157.57,157.51,37.19]
[1721129542114,1.58685532,157.59,157.51,37.19]
[1721129542791,1.58685532,157.59,157.52,1.26948486]
[1721129542997,1.58679748,157.6,157.52,1.26948486]
[1721129543589,11.58679748,157.6,157.51,37.19]
[1721129544293,45.0,157.59,157.57,18.59]
[1721129544491,1.58666031,157.58,157.56,18.59]
[1721129544705,1.58666031,157.58,157.48,35.7524347]
[1721129544706,1.58666031,157.58,157.48,16.6924347]
[1721129544877,1.58666031,157.58,157.56,18.59]
[1721129545078,11.58666031,157.58,157.54,18.59]
[1721129545288,45.0,157.57,157.54,18.59]
[1721129545604,1.58694789,157.56,157.54,18.59]
[1721129546284,1.58694789,157.56,157.49,38.46955819]
[1721129546490,0.34,157.59,157.49,38.46955819]
[1721129546491,1.92686053,157.59,157.49,37.2]
[1721129546807,46.58686053,157.59,157.49,37.2]
[1721129547180,46.58686053,157.59,157.52,37.2]
[1721129547378,1.58686053,157.59,157.53,1.26937394]
[1721129547683,46.92669733,157.6,157.53,1.26937394]
[1721129547992,1.58669733,157.6,157.53,1.26937394]
[1721129548902,1.58669733,157.6,157.52,37.2]
[1721129549280,11.58669733,157.6,157.52,37.2]
[1721129549784,45.0,157.59,157.53,1.26940698]
[1721129549980,1.58669101,157.58,157.53,1.26940698]
[1721129550182,1.58674347,157.57,157.53,1.26940698]
[1721129550405,1.58678097,157.59,157.52,37.2]
[1721129550600,10.0,157.58,157.52,37.2]
[1721129550809,10.0,157.58,157.48,16.6924347]
[1721129550810,46.58694451,157.57,157.49,37.2]
[1721129551306,16.1502,157.55,157.48,0.8562347]
[1721129551497,1.5871071,157.54,157.48,38.0562347]
[1721129553107,1.5871071,157.54,157.49,1.26968382]
[1721129553607,1.58701136,157.54,157.48,38.0562347]
[1721129553995,11.58701136,157.54,157.48,38.0562347]
[1721129554191,10.0,157.52,157.48,0.8562347]
[1721129554397,1.58751782,157.51,157.48,0.8562347]
[1721129555286,46.58751782,157.51,157.48,0.8562347]
[1721129555504,45.0,157.51,157.48,0.8562347]
[1721129555908,1.58742764,157.5,157.48,0.8562347]
[1721129557091,8.22862764,157.5,157.48,0.8562347]
[1721129558003,6.6412,157.5,157.48,0.8562347]
[1721129560079,1.58744854,157.53,157.48,0.8562347]
[1721129560291,46.58744854,157.53,157.48,0.8562347]
[1721129561313,52.93564854,157.53,157.48,0.8562347]
[1721129561614,10.17,157.52,157.48,0.8562347]
[1721129561787,52.93564854,157.53,157.48,0.8562347]
[1721129561788,1.58751784,157.51,157.48,0.8562347]
[1721129562901,46.58751784,157.51,157.48,0.8562347]
[1721129563083,1.58751784,157.51,157.48,0.8562347]
[1721129563283,1.58737964,157.53,157.48,0.8562347]
[1721129563505,46.58737964,157.53,157.48,0.8562347]
[1721129564091,52.93537964,157.53,157.48,0.8562347]
[1721129564698,46.58737964,157.53,157.48,0.8562347]
[1721129566496,10.0,157.52,157.48,0.8562347]
[1721129566699,46.58754863,157.51,157.48,0.8562347]
[1721129567101,45.0,157.51,157.48,0.8562347]
[1721129569618,1.58758832,157.5,157.48,0.8562347]
[1721129570307,11.58758832,157.5,157.48,0.8562347]
[1721129570622,45.0,157.49,157.48,0.8562347]
[1721129572130,67.6662,157.49,157.48,0.8562347]
[1721129572306,67.4962,157.49,157.48,0.8562347]
[1721129572627,67.3262,157.49,157.48,0.8562347]
[1721129574301,1.5876914,157.51,157.48,19.4762347]
[1721129575007,1.5876914,157.51,157.48,0.8562347]
[1721129575212,1.5876914,157.51,157.48,19.4762347]
[1721129575401,7.9364914,157.51,157.48,0.8562347]
[1721129575600,1.5876914,157.51,157.48,0.8562347]
[1721129575804,46.5876914,157.51,157.48,19.4762347]
[1721129576099,46.5876914,157.51,157.48,0.8562347]
[1721129576100,10.0,157.5,157.48,0.8562347]
[1721129576295,46.58770772,157.49,157.48,0.8562347]
[1721129579032,46.92770772,157.49,157.48,0.8562347]
[1721129582012,45.0,157.49,157.48,0.8562347]
[1721129582409,46.58767777,157.49,157.48,0.8562347]
[1721129583230,1.58767777,157.49,157.48,19.4762347]
[1721129583408,1.58754549,157.51,157.48,19.4762347]
[1721129583605,1.58754549,157.51,157.48,0.8562347]
[1721129583810,1.58754549,157.51,157.48,19.4762347]
[1721129584323,1.58754549,157.51,157.49,18.62]
[1721129584702,1.58749162,157.5,157.49,18.62]
[1721129585029,1.58749439,157.51,157.48,19.4762347]
[1721129586006,1.58749439,157.51,157.48,0.8562347]
[1721129586210,1.58749439,157.51,157.48,19.4762347]
[1721129586820,1.58749439,157.51,157.48,0.8562347]
[1721129587336,1.58749439,157.51,157.48,19.4762347]
[1721129587727,1.58749439,157.51,157.48,0.8562347]
[1721129587728,10.0,157.5,157.48,0.8562347]
[1721129587907,46.58778605,157.49,157.48,0.8562347]
[1721129588407,46.92778605,157.49,157.48,0.8562347]
[1721129589019,46.58778605,157.49,157.48,0.8562347]
[1721129589522,53.27738605,157.49,157.48,0.8562347]
[1721129591034,71.89738605,157.49,157.48,0.8562347]
[1721129591831,93.29238605,157.49,157.48,0.8562347]
[1721129592329,68.32278605,157.49,157.48,0.8562347]
[1721129592535,53.20928605,157.49,157.48,0.8562347]
[1721129594027,59.55888605,157.49,157.48,0.8562347]
[1721129594214,53.20928605,157.49,157.48,0.8562347]
[1721129594702,53.03928605,157.49,157.48,0.8562347]
[1721129597334,46.75778605,157.49,157.48,0.8562347]
[1721129600037,46.92778605,157.49,157.48,0.8562347]
[1721129600412,46.75778605,157.49,157.48,0.8562347]
[1721129600843,1.58770156,157.52,157.48,19.4762347]
[1721129601044,1.58752642,157.51,157.48,19.4762347]
[1721129601232,1.58752642,157.51,157.5,18.62]
[1721129601435,1.58752642,157.51,157.48,0.8562347]
[1721129601436,1.58752642,157.51,157.48,19.4762347]
[1721129602129,1.58749023,157.52,157.49,18.62]
[1721129602452,1.58740678,157.51,157.49,18.62]
[1721129602941,1.58740678,157.51,157.5,18.62]
[1721129603246,1.58735576,157.52,157.5,18.62]
[1721129603749,1.58735576,157.52,157.51,18.62]
[1721129603931,1.58726292,157.53,157.51,18.62]
[1721129604128,1.58721492,157.55,157.52,18.62]
[1721129604327,1.58713569,157.54,157.48,0.8562347]
[1721129604534,11.58713569,157.54,157.51,18.62]
[1721129604835,17.93483569,157.54,157.49,18.62]
[1721129605032,17.93483569,157.54,157.5,18.62]
[1721129605239,10.0,157.52,157.48,0.8562347]
[1721129605439,1.58750834,157.51,157.49,18.62]
[1721129605632,46.58750834,157.51,157.49,18.62]
[1721129607147,46.58750834,157.51,157.48,19.4762347]
[1721129607746,46.58750834,157.51,157.49,18.62]
[1721129608048,46.58750834,157.51,157.48,19.4762347]
[1721129608260,10.17,157.5,157.48,0.8562347]
[1721129608439,46.58779292,157.49,157.48,0.8562347]
[1721129608625,46.75779292,157.49,157.48,0.8562347]
[1721129609440,71.89739292,157.49,157.48,0.8562347]
[1721129610530,53.27739292,157.49,157.48,0.8562347]
[1721129610734,71.89739292,157.49,157.48,0.8562347]
[1721129613159,90.95739292,157.49,157.48,0.8562347]
[1721129613344,89.3696,157.49,157.48,0.8562347]
[1721129613854,70.7496,157.49,157.48,0.8562347]
[1721129614035,89.3696,157.49,157.48,0.8562347]
[1721129615254,72.3379072,157.49,157.48,0.8562347]
[1721129615470,89.3696,157.49,157.48,0.8562347]
[1721129615837,70.3096,157.49,157.48,0.8562347]
[1721129616338,6.3496,157.49,157.48,0.8562347]
[1721129616552,24.9696,157.49,157.48,0.8562347]
[1721129617354,25.1396,157.49,157.48,0.8562347]
[1721129617553,71.89763678,157.49,157.48,0.8562347]
[1721129620163,7.93763678,157.49,157.48,0.8562347]
[1721129620339,26.55763678,157.49,157.48,0.8562347]
[1721129621434,1.75803678,157.49,157.48,0.8562347]
[1721129621656,46.58803678,157.49,157.48,0.8562347]
[1721129622159,1.58803678,157.49,157.48,19.4762347]
[1721129622351,1.58753224,157.51,157.48,19.4762347]
[1721129622651,1.58733628,157.53,157.5,18.62]
[1721129622854,1.58733628,157.53,157.51,18.62]
[1721129623155,1.58733628,157.53,157.48,0.8562347]
[1721129623360,1.58733628,157.53,157.5,18.62]
[1721129623864,1.58733628,157.53,157.51,18.62]
[1721129624359,1.5872579,157.54,157.52,18.62]
[1721129624573,1.5872579,157.54,157.53,18.62]
[1721129625242,7.93434404,157.55,157.52,18.62]
[1721129625556,1.58713468,157.54,157.52,18.62]
[1721129626764,62.93483468,157.54,157.48,0.8562347]
[1721129627041,62.93483468,157.54,157.51,18.62]
[1721129628572,56.58713468,157.54,157.51,18.62]
[1721129629065,62.93473468,157.54,157.48,0.8562347]
[1721129629275,10.0,157.52,157.48,0.8562347]
[1721129629566,46.58756605,157.51,157.49,18.62]
[1721129629768,1.58739312,157.53,157.49,18.62]
[1721129630062,1.58739312,157.53,157.51,18.62]
[1721129630244,1.58739312,157.53,157.52,18.62]
[1721129630667,10.0,157.56,157.52,18.62]
[1721129630668,1.58712528,157.55,157.52,18.62]
[1721129630869,1.58708327,157.55,157.49,16.5032]
[1721129631070,1.58698621,157.57,157.54,18.62]
[1721129631572,1.58698621,157.57,157.49,17.77280286]
[1721129631573,1.58698621,157.57,157.56,18.62]
[1721129631860,10.0,157.56,157.49,16.5032]
[1721129632180,1.58714806,157.55,157.52,18.62]
[1721129632345,11.58711342,157.54,157.49,16.5032]
[1721129632545,17.93501342,157.54,157.5,18.62]
[1721129632858,51.348,157.53,157.5,18.62]
[1721129633063,1.58736571,157.52,157.5,18.62]
[1721129633374,1.58736543,157.51,157.5,18.62]
[1721129634052,1.58736543,157.51,157.48,0.8562347]
[1721129634258,46.58736543,157.51,157.48,0.8562347]
[1721129634860,1.5875809,157.5,157.48,0.8562347]
[1721129635764,1.58758033,157.51,157.48,0.8562347]
[1721129636147,11.58758033,157.51,157.48,0.8562347]
[1721129636370,51.6895,157.5,157.48,0.8562347]
[1721129636667,17.93742659,157.49,157.48,0.8562347]
[1721129636878,63.10742659,157.49,157.48,0.8562347]
[1721129637050,56.58782659,157.49,157.48,0.8562347]
[1721129637453,55.0,157.49,157.48,0.8562347]
[1721129637674,45.0,157.49,157.48,0.8562347]
[1721129639279,11.58777774,157.51,157.48,0.8562347]
[1721129639575,45.0,157.5,157.48,0.8562347]
[1721129639885,1.587651,157.49,157.48,0.8562347]
[1721129641081,1.58759329,157.5,157.48,0.8562347]
[1721129641276,52.93679329,157.5,157.48,0.8562347]
[1721129641963,6.3496,157.49,157.48,0.8562347]
[1721129642148,61.3496,157.49,157.48,0.8562347]
[1721129643579,61.6896,157.49,157.48,0.8562347]
[1721129644673,45.0,157.49,157.48,0.8562347]
[1721129645872,1.58759329,157.5,157.48,0.8562347]
[1721129646063,1.58755045,157.51,157.48,0.8562347]
[1721129646987,16.3481,157.53,157.48,0.8562347]
[1721129646988,7.93585553,157.52,157.48,0.8562347]
[1721129647285,1.58745782,157.51,157.48,0.8562347]
[1721129648569,11.58745782,157.51,157.48,0.8562347]
[1721129648783,45.0,157.5,157.48,0.8562347]
[1721129648978,1.58781558,157.49,157.48,0.8562347]
[1721129649279,17.93741558,157.49,157.48,0.8562347]
[1721129649575,63.10741558,157.49,157.48,0.8562347]
[1721129649956,63.27741558,157.49,157.48,0.8562347]
[1721129650352,51.5196,157.49,157.48,0.8562347]
[1721129651061,1.58789944,157.51,157.48,0.8562347]
[1721129652259,46.58789944,157.51,157.48,0.8562347]
[1721129652767,1.58747404,157.5,157.48,0.8562347]
[1721129653083,1.58747487,157.51,157.48,0.8562347]
[1721129653966,18.24977508,157.57,157.48,15.8876347]
[1721129654294,6.3471,157.56,157.49,1.26976221]
[1721129654465,11.58720611,157.55,157.48,15.8876347]
[1721129654791,1.58727382,157.54,157.48,15.8876347]
[1721129655085,6.3481,157.53,157.48,15.8876347]
[1721129655301,1.58740328,157.52,157.48,15.8876347]
[1721129655590,1.58741646,157.51,157.48,15.8876347]
[1721129656171,46.58741646,157.51,157.48,0.8562347]
[1721129656781,1.58753581,157.5,157.48,0.8562347]
[1721129657185,1.58753535,157.51,157.48,0.8562347]
[1721129658091,16.3493,157.5,157.48,0.8562347]
[1721129658294,1.58768485,157.49,157.48,0.8562347]
[1721129658673,1.58756707,157.51,157.48,0.8562347]
[1721129659167,10.0,157.5,157.48,0.8562347]
[1721129659369,1.58768576,157.49,157.48,0.8562347]
[1721129659785,46.58756386,157.5,157.48,0.8562347]
[1721129660172,1.58756386,157.5,157.48,0.8562347]
[1721129660962,17.93676386,157.5,157.48,0.8562347]
[1721129661168,51.3496,157.49,157.48,0.8562347]
[1721129661372,51.5196,157.49,157.48,0.8562347]
[1721129662779,67.8067,157.49,157.48,0.8562347]
[1721129663187,86.8667,157.49,157.48,0.31396853]
[1721129663698,67.8067,157.49,157.48,0.31396853]
[1721129663877,86.8667,157.49,157.48,0.31396853]
[1721129664277,67.8067,157.49,157.48,0.31396853]
[1721129665013,86.8667,157.49,157.48,0.31396853]
[1721129666301,136.15733845,157.49,157.48,0.31396853]
[1721129667491,10.0,157.42,157.38,16.0324]
[1721129668005,1.27359533,157.41,157.38,16.0324]
[1721129668683,10.0,157.42,157.38,16.0324]
[1721129668900,1.27359533,157.41,157.38,16.0324]
[1721129669606,46.27359533,157.41,157.38,16.0324]
[1721129669777,46.27359533,157.41,157.33,15.9202]
[1721129669778,10.0,157.4,157.33,15.9202]
[1721129669985,46.27359533,157.39,157.33,17.19116683]
[1721129670174,10.0,157.44,157.33,17.19116683]
[1721129670500,46.61359533,157.43,157.33,17.19116683]
[1721129670705,46.61359533,157.43,157.33,15.9202]
[1721129671004,46.27359533,157.43,157.33,15.9202]
[1721129671190,10.0,157.42,157.33,15.9202]
[1721129671388,46.27359533,157.41,157.33,15.9202]
[1721129672384,1.27359533,157.4,157.33,15.9202]
[1721129672575,1.27359533,157.4,157.33,53.1402]
[1721129673183,1.27359533,157.4,157.33,54.41103799]
[1721129674201,1.27359533,157.4,157.37,18.64]
[1721129674704,11.27359533,157.4,157.37,18.64]
[1721129674878,45.0,157.39,157.37,18.64]
[1721129675077,1.27359533,157.38,157.36,18.64]
[1721129675488,1.27359533,157.38,157.33,15.9202]
[1721129675689,11.27359533,157.38,157.33,15.9202]
[1721129675896,11.27359533,157.38,157.33,34.5602]
[1721129675897,29.91359533,157.38,157.33,34.5602]
[1721129676097,1.27359533,157.38,157.33,15.9202]
[1721129676311,1.27359533,157.38,157.36,18.64]
[1721129676518,1.27359533,157.39,157.37,18.64]
[1721129676723,1.27359533,157.41,157.37,18.64]
[1721129676926,10.0,157.4,157.37,18.64]
[1721129677103,46.27359533,157.39,157.36,18.64]
[1721129678222,46.27359533,157.39,157.33,15.9202]
[1721129678403,1.27359533,157.38,157.33,17.19118596]
[1721129679211,1.27359533,157.38,157.33,15.9202]
[1721129679521,1.27359533,157.39,157.33,17.19123277]
[1721129679722,1.27359533,157.39,157.33,15.9202]
[1721129681427,1.27359533,157.39,157.33,17.19123896]